fUSD/lending_fUSD_20240409
["ID","MTS","AMOUNT","RATE_DAILY","PERIOD"]
[322030328,1712695887279,-267.25,0.00036544,2]
[322030329,1712695887288,-1290.0,0.00036548,7]
[322030330,1712695887296,-220.0,0.00036581,20]
[322030331,1712695887306,-11571.19423167,0.0003665,3]
[322030332,1712695887315,-1004.9,0.0003675,2]
[322030333,1712695887324,-2877.13735236,0.00036754,9]
[322030334,1712695887333,-1750.0,0.000368,26]
[322030335,1712695887342,-159.76941986,0.00036815,19]
[322030336,1712695887350,-2500.0,0.00036921,10]
[322030337,1712695887359,-2500.0,0.00036921,10]
[322030338,1712695887370,-151.0,0.00036941,2]
[322030339,1712695887379,-400.011389,0.00036989,7]
[322030340,1712695887389,-400.011389,0.00036989,7]
[322030341,1712695887417,-100000.0,0.00037,17]
[322030342,1712695887452,-152.78057658,0.00037,2]
[322030343,1712695887498,-200.0,0.00037,2]
[322030344,1712695887547,-7541.43548811,0.00037,2]
[322030345,1712695887556,-10000.0,0.00037,12]
[322030346,1712695887565,-3188.0,0.00037,4]
[322030347,1712695887575,-10000.0,0.00037,7]
[322030348,1712695887584,-170461.53612333,0.00037,20]
[322030349,1712695887593,-571.33,0.00037,7]
[322030350,1712695887602,-1700.0,0.00037,3]
[322030351,1712695887612,-150.0,0.00037202,2]
[322030352,1712695887621,-520.36,0.00037202,2]
[322030353,1712695887631,-161.57,0.00037202,2]
[322030354,1712695887640,-349.26,0.00037202,2]
[322030355,1712695887649,-150.0,0.00037203,2]
[322030356,1712695887659,-15283.74509619,0.00037269,2]
[322030357,1712695887668,-1750.0,0.000373,26]
[322030358,1712695887677,-2500.0,0.00037303,10]
[322030359,1712695887687,-153.90901758,0.0003731,4]
[322030360,1712695887696,-220.0,0.00037343,20]
[322030361,1712695887705,-1909.76839674,0.000374,2]
[322030362,1712695887714,-10000.0,0.000374,12]
[322030363,1712695887725,-1004.9,0.000374,2]
[322030364,1712695887734,-302.54,0.00037425,2]
[322030365,1712695887743,-150.0,0.00037487,120]
[322030366,1712695887752,-10463.84545204,0.000375,7]
[322030367,1712695887762,-400.011389,0.00037525,7]
[322030368,1712695887770,-400.011389,0.00037525,7]
[322030369,1712695887779,-4088.0155286,0.0003759,2]
[322030370,1712695887788,-302.36,0.0003775,2]
[322030371,1712695887797,-906.64,0.00037763,2]
[322030372,1712695887807,-906.64,0.00037763,2]
[322030373,1712695887817,-906.64,0.00037763,2]
[322030374,1712695887826,-332.03,0.00037763,2]
[322030375,1712695887836,-1290.0,0.00037781,7]
[322030376,1712695887845,-163.88328698,0.000378,2]
[322030377,1712695887855,-1750.0,0.000378,27]
[322030378,1712695887864,-184.933186,0.00037808,14]
[322030379,1712695887873,-159.76941986,0.00037815,23]
[322030380,1712695887882,-150.0,0.00037844,120]
[322030381,1712695887891,-651.56,0.000379,7]
[322030382,1712695887900,-1000.0,0.000379,2]
[322030383,1712695887909,-1030.0,0.00037915,5]
[322030384,1712695887919,-302.54,0.0003794,2]
[322030385,1712695887928,-100000.0,0.00038,18]
[322030386,1712695887936,-1009.30751315,0.00038,2]
[322030387,1712695887946,-6055.19985663,0.00038,10]
[322030388,1712695887955,-257.112,0.00038,2]
[322030389,1712695887964,-92719.91468289,0.00038,10]
[322030390,1712695887973,-300.0,0.00038,14]
[322030391,1712695887982,-1000.0,0.00038,2]
[322030392,1712695887992,-164.7753948,0.00038,2]
[322030393,1712695888002,-683.66,0.00038027,15]
[322030394,1712695888011,-150.0,0.00038068,2]
[322030395,1712695888021,-1004.9,0.000381,2]
[322030396,1712695888031,-1000.0,0.000381,2]
[322030397,1712695888040,-1000.0,0.000381,2]
[322030398,1712695888050,-220.0,0.00038105,20]
[322030399,1712695888059,-1750.0,0.000383,27]
[322030400,1712695888068,-1031.19268982,0.00038356,120]
[322030401,1712695888079,-3000.0,0.000384,2]
[322030402,1712695888088,-358.60060463,0.000384,33]
[322030403,1712695888098,-150.0,0.00038466,2]
[322030404,1712695888108,-150.0,0.00038466,2]
[322030405,1712695888117,-150.0,0.00038466,2]
[322030406,1712695888126,-150.0,0.00038466,2]
[322030407,1712695888135,-150.0,0.00038466,2]
[322030408,1712695888145,-150.0,0.00038466,2]
[322030409,1712695888154,-150.0,0.00038466,2]
[322030410,1712695888164,-150.0,0.00038466,2]
[322030411,1712695888174,-150.0,0.00038466,2]
[322030412,1712695888183,-150.0,0.00038466,2]
[322030413,1712695888192,-301.55,0.00038466,2]
[322030414,1712695888202,-2636.53400963,0.000385,23]
[322030415,1712695888211,-2500.0,0.000385,14]
[322030416,1712695888221,-2500.0,0.000385,10]
[322030417,1712695888230,-1883.69281238,0.000385,7]
[322030418,1712695888239,-1900.0,0.000385,17]
[322030419,1712695888249,-1000.0,0.000385,2]
[322030420,1712695888258,-10000.0,0.000385,12]
[322030421,1712695888267,-10000.0,0.000385,12]
[322030422,1712695888276,-184.933186,0.0003863,14]
[322030423,1712695888285,-1004.9,0.0003875,2]
[322030424,1712695888294,-1194.97555993,0.00038765,2]
[322030425,1712695888303,-449971.02155446,0.0003877,4]
[322030426,1712695888313,-17013.24500872,0.0003877,4]
[322030427,1712695888322,-20000.0,0.000388,7]
[322030428,1712695888332,-8000.0,0.000388,7]
[322030429,1712695888341,-1750.0,0.000388,28]
[322030430,1712695888350,-267.25,0.00038808,2]
[322030431,1712695888359,-159.76941986,0.00038815,27]
[322030432,1712695888368,-220.0,0.00038867,20]
[322030433,1712695888377,-4066.62367316,0.000389,15]
[322030434,1712695888386,-302.54,0.0003891,2]
[322030435,1712695888395,-1000.0,0.00038933,2]
[322030436,1712695888404,-711.57,0.00038933,2]
[322030437,1712695888413,-150.0,0.00038933,2]
[322030438,1712695888422,-120554.20668444,0.0003897,2]
[322030439,1712695888432,-2307.65334274,0.0003897,2]
[322030440,1712695888441,-100000.0,0.00039,19]
[322030441,1712695888450,-1158.38966182,0.00039,2]
[322030442,1712695888459,-1029.74589916,0.00039,2]
[322030443,1712695888468,-2013.0,0.00039,15]
[322030444,1712695888478,-2000.0,0.00039,10]
[322030445,1712695888487,-263.62229316,0.00039,7]
[322030446,1712695888496,-1624.90815072,0.00039,4]
[322030447,1712695888505,-2500.0,0.00039,3]
[322030448,1712695888514,-13555.88462942,0.00039,7]
[322030449,1712695888523,-130861.83183456,0.00039,10]
[322030450,1712695888532,-10000.0,0.00039,12]
[322030451,1712695888541,-381.42,0.00039,7]
[322030452,1712695888550,-206.0,0.00039,2]
[322030453,1712695888560,-1750.0,0.00039,3]
[322030454,1712695888569,-1290.0,0.00039014,7]
[322030455,1712695888578,-1040.0,0.000392,10]
[322030456,1712695888587,-12000.0,0.00039265,8]
[322030457,1712695888596,-1750.0,0.000393,28]
[322030458,1712695888605,-600.0,0.0003941,10]
[322030459,1712695888614,-302.54,0.00039425,2]
[322030460,1712695888623,-150.0,0.0003945,120]
[322030461,1712695888633,-1004.9,0.0003945,2]
[322030462,1712695888642,-184.933186,0.00039452,14]
[322030463,1712695888651,-1019.6501,0.00039488,30]
[322030464,1712695888660,-10000.0,0.000395,12]
[322030465,1712695888669,-216822.18760015,0.000395,30]
[322030466,1712695888678,-10000.0,0.000396,12]
[322030467,1712695888687,-220.0,0.0003963,20]
[322030468,1712695888696,-410.0,0.000397,2]
[322030469,1712695888705,-978.0,0.000397,2]
[322030470,1712695888715,-200.0,0.000397,2]
[322030471,1712695888724,-3498.0,0.000397,2]
[322030472,1712695888734,-1000.0,0.000397,2]
[322030473,1712695888743,-150.0,0.00039798,2]
[322030474,1712695888752,-2503.121609,0.000398,29]
[322030475,1712695888761,-159.76941986,0.00039815,32]
[322030476,1712695888770,-39963.996,0.0003989,2]
[322030477,1712695888779,-1030.0,0.00039911,5]
[322030478,1712695888788,-600.0,0.00039958,10]
[322030479,1712695888798,-1100.0,0.0004,7]
[322030480,1712695888807,-192.76675003,0.0004,2]
[322030481,1712695888816,-22103.7237332,0.0004,4]
[322030482,1712695888825,-547.14230713,0.0004,4]
[322030483,1712695888835,-1354.4004915,0.0004,5]
[322030485,1712695888844,-63218.8060295,0.0004,3]
[322030486,1712695888853,-111967.27269027,0.0004,2]
[322030487,1712695888862,-2456.3509546,0.0004,2]
[322030488,1712695888871,-1000.0,0.0004,2]
[322030489,1712695888880,-1000.0,0.0004,2]
[322030490,1712695888889,-691.0,0.0004,3]
[322030491,1712695888898,-304.79384862,0.0004,4]
[322030492,1712695888908,-15112.36162459,0.0004,4]
[322030493,1712695888917,-2000.0,0.0004,2]
[322030494,1712695888926,-150.0,0.0004,2]
[322030495,1712695888935,-1600.0,0.0004,12]
[322030496,1712695888944,-2100.0,0.0004,2]
[322030497,1712695888954,-500.0,0.0004,2]
[322030498,1712695888963,-32364.3679995,0.0004,2]
[322030499,1712695888973,-369.24985482,0.0004,2]
[322030500,1712695888982,-9271.40180771,0.0004,7]
[322030501,1712695888991,-8980.9195384,0.0004,2]
[322030502,1712695889001,-36914.9878182,0.0004,7]
[322030503,1712695889010,-300.0,0.0004,7]
[322030504,1712695889019,-3562.00292263,0.0004,5]
[322030505,1712695889028,-8628.76629893,0.0004,3]
[322030506,1712695889038,-10000.0,0.0004,12]
[322030507,1712695889047,-1179.32,0.0004,14]
[322030508,1712695889056,-21530.60335252,0.0004,8]
[322030509,1712695889065,-2000.0,0.0004,5]
[322030510,1712695889075,-2000.0,0.0004,5]
[322030511,1712695889086,-2000.0,0.0004,5]
[322030512,1712695889096,-2000.0,0.0004,5]
[322030513,1712695889105,-72948.7158743,0.0004,10]
[322030514,1712695889114,-2000.0,0.0004,5]
[322030515,1712695889124,-2000.0,0.0004,5]
[322030516,1712695889133,-15029.94173585,0.0004,12]
[322030517,1712695889142,-3870.0,0.0004,7]
[322030518,1712695889152,-1573.06048074,0.0004,60]
[322030519,1712695889162,-202.69340588,0.0004,120]
[322030520,1712695889172,-2877.13735236,0.00040059,12]
[322030521,1712695889181,-1004.9,0.000401,2]
[322030522,1712695889190,-1290.0,0.00040246,7]
[322030523,1712695889199,-220.0,0.00040392,20]
[322030524,1712695889209,-302.54,0.00040395,2]
[322030525,1712695889218,-157.73928212,0.00040437,10]
[322030526,1712695889227,-150.0,0.00040663,2]
[322030527,1712695889236,-472.93,0.00040685,2]
[322030528,1712695889245,-3352.13561494,0.00040691,2]
[322030529,1712695889254,-10000.0,0.000407,12]
[322030530,1712695889263,-683.66,0.00040767,15]
[322030531,1712695889273,-500.0,0.0004078,10]
[322030532,1712695889282,-500.0,0.0004078,10]
[322030533,1712695889291,-1200.0,0.0004078,10]
[322030534,1712695889300,-600.0,0.0004078,10]
[322030535,1712695889309,-9420.59374002,0.00040781,7]
[322030536,1712695889318,-46670.271355,0.00040781,7]
[322030537,1712695889328,-180795.896122,0.00040781,7]
[322030538,1712695889337,-967.50021784,0.00040781,7]
[322030539,1712695889346,-5000.0,0.000408,3]
[322030540,1712695889355,-1004.9,0.000408,2]
[322030541,1712695889364,-159.76941986,0.00040815,36]
[322030542,1712695889373,-85859.01880955,0.000409,2]
[322030543,1712695889551,-11057.0,0.000409,2]
[322030544,1712695889690,-610.685,0.00018978,2]
[322030545,1712695889701,-560.03388963,0.00018978,2]
[322030546,1712695889710,-119.95112037,0.00019682,2]
[322030547,1712695889732,-720.76887963,0.00019682,2]
[322030548,1712695889741,-279.23112037,0.00019956,2]
[322030549,1712695889763,-561.48887963,0.00019956,2]
[322030550,1712695889773,-840.72,0.0002023,2]
[322030551,1712695889782,-510.75792037,0.00020504,2]
[322030552,1712695889807,-329.96207963,0.00020504,2]
[322030553,1712695889817,-840.72,0.00020778,2]
[322030554,1712695889826,-492.15077999,0.000209,2]
[322030555,1712695889836,-840.72,0.00021052,2]
[322030556,1712695889845,-94.18497434,0.00021326,2]
[322030557,1712695889856,-746.53502566,0.00021326,2]
[322030558,1712695889866,-840.72,0.000216,2]
[322030559,1712695889875,-151.0,0.00024524,7]
[322030560,1712695889885,-151.0,0.0002469,7]
[322030561,1712695889894,-2076.25402044,0.00027397,10]
[322030562,1712695889906,-697.83524348,0.00027397,10]
[322030563,1712695890221,15554.34795337,0.00016169,2]
[322030564,1712695890834,158.34642619,0.000321,30]
[322030565,1712695890963,172.93532753,0.000321,120]
[322030566,1712695891094,2000.0,0.000321,30]
[322030567,1712695891127,323.77283126,0.000321,30]
[322030570,1712695900026,801.69161442,0.000321,120]
[322030572,1712695903634,417.58474082,0.000321,120]
[322030575,1712695906963,2000.0,0.000321,90]
[322030577,1712695921377,649.999999,0.000321,30]
[322030580,1712695930393,248.80063961,0.000321,60]
[322030581,1712695932652,399.16493589,0.000321,60]
[322030582,1712695935237,492.70108128,0.000321,120]
[322030587,1712695955920,621.93261345,0.000321,30]
[322030592,1712696009594,270.57181474,0.000321,120]
[322030593,1712696018696,1003.89808115,0.000321,30]
[322030594,1712696022778,293.35897146,0.000321,120]
[322030595,1712696024091,294.69364509,0.000321,120]
[322030596,1712696024903,250.42845136,0.000321,30]
[322030597,1712696025509,211.65389864,0.000321,120]
[322030598,1712696026522,543.1161906,0.000321,120]
[322030599,1712696028498,276.27233312,0.000321,30]
[322030601,1712696030925,556.16203121,0.000321,120]
[322030602,1712696034175,431.00776958,0.000321,120]
[322030603,1712696036907,304.87818112,0.000321,30]
[322030604,1712696041307,604.06855304,0.000321,30]
[322030606,1712696046807,165.75990399,0.000321,30]
[322030607,1712696048207,1077.62762297,0.000321,30]
[322030609,1712696069921,271.91319936,0.000321,120]
[322030610,1712696070213,377.186732,0.000321,30]
[322030611,1712696071024,234.91920364,0.000321,30]
[322030612,1712696071442,489.16500499,0.000321,120]
[322030613,1712696071624,404.34267834,0.000321,120]
[322030614,1712696071752,150.60693407,0.000321,120]
[322030615,1712696071897,1142.82,0.000321,120]
[322030616,1712696072006,491.86373698,0.000321,30]
[322030617,1712696072122,580.59443984,0.000321,30]
[322030618,1712696072657,339.81277358,0.000321,120]
[322030619,1712696073470,746.19048323,0.000321,120]
[322030620,1712696074650,1076.76152077,0.000321,30]
[322030622,1712696076351,488.40076222,0.000321,120]
[322030634,1712696285456,155.48,0.00017594,2]
[322030645,1712696344424,-704.91869228,0.00018211,2]
[322030646,1712696344444,-155.0,0.00018212,2]
[322030647,1712696344466,-746.05,0.00018213,2]
[322030648,1712696344486,-151.75337267,0.00018213,2]
[322030649,1712696344505,-500.0,0.00018213,2]
[322030650,1712696344527,-166.69515823,0.00018216,2]
[322030651,1712696344546,-13075.58277682,0.00018316,2]
[322030672,1712696779122,155.48,0.00017611,2]
[322030735,1712697031628,-10104.71097227,0.00018316,2]
[322030738,1712697031638,-352.855,0.00019189,2]
[322030739,1712697031648,-3070.33,0.00019489,2]
[322030740,1712697031658,-558.06,0.0001952,2]
[322030742,1712697031669,-250.0,0.00019523,2]
[322030744,1712697031679,-1000.0,0.00019523,2]
[322030746,1712697031690,-1500.0,0.00019529,2]
[322030748,1712697031700,-299.09,0.00019554,2]
[322030749,1712697031710,-1000.0,0.00019611,2]
[322030750,1712697031721,-258.25374868,0.0001978,2]
[322030751,1712697031732,-309.32615595,0.00019781,2]
[322030752,1712697031742,-499.99,0.00019781,2]
[322030753,1712697031753,-155.48,0.00020001,2]
[322030754,1712697031764,-175.61,0.00020029,2]
[322030755,1712697031775,-336.19067971,0.00020392,2]
[322030756,1712697031785,-155.37066366,0.00020392,2]
[322030757,1712697031796,-297.29902466,0.00020392,2]
[322030758,1712697031806,-2795.93139993,0.0002049,2]
[322030759,1712697031817,-17500.0,0.000205,2]
[322030760,1712697031832,-2500.0,0.000205,2]
[322030761,1712697031842,-28531.10338708,0.000205,2]
[322030762,1712697031861,-3343.71851292,0.000205,2]
[322030763,1712697031871,-254.57220545,0.00020502,2]
[322030764,1712697031881,-254.57220545,0.00020502,2]
[322030765,1712697031892,-184.51508928,0.00020502,2]
[322030766,1712697031903,-1053.64700073,0.00020535,2]
[322030767,1712697031913,-505.0,0.00020547,2]
[322030768,1712697031923,-800.0,0.00020575,2]
[322030769,1712697031933,-1053.64700066,0.00020576,2]
[322030770,1712697031942,-8271.04258511,0.00020577,4]
[322030771,1712697031952,-570.59194654,0.00020588,2]
[322030772,1712697031962,-503.87779719,0.00020598,2]
[322030773,1712697031972,-155.39379797,0.00020598,2]
[322030774,1712697031981,-155.624877,0.00020598,2]
[322030775,1712697031991,-169.12911613,0.00020598,2]
[322030776,1712697032001,-156.80867088,0.00020598,3]
[322030777,1712697032010,-156.34656449,0.00020598,2]
[322030778,1712697032019,-362.27924693,0.00020598,2]
[322030779,1712697032029,-216.08179167,0.00020598,2]
[322030780,1712697032039,-155.0,0.00020598,2]
[322030781,1712697032048,-155.0,0.00020598,2]
[322030782,1712697032058,-5357.36156544,0.00020598,2]
[322030783,1712697032068,-175.43329082,0.00020598,2]
[322030784,1712697032078,-6299.96928165,0.00020598,2]
[322030785,1712697032089,-198.43466289,0.00020598,2]
[322030786,1712697032099,-588.3974062,0.00020598,2]
[322030787,1712697032110,-342.16157541,0.00020598,2]
[322030788,1712697032119,-155.0,0.00020598,2]
[322030789,1712697032129,-155.0,0.00020598,2]
[322030790,1712697032139,-155.8559771,0.00020598,2]
[322030791,1712697032148,-157.40175635,0.00020598,2]
[322030792,1712697032158,-201.70970814,0.00020598,2]
[322030793,1712697032168,-155.0,0.00020598,2]
[322030794,1712697032177,-703.06758012,0.00020598,2]
[322030795,1712697032187,-500.0,0.00020598,2]
[322030796,1712697032197,-9946.53085165,0.00020598,2]
[322030797,1712697032207,-166.10251118,0.00020598,2]
[322030798,1712697032217,-1764.087237,0.00020599,2]
[322030799,1712697032226,-6389.74782867,0.00020599,2]
[322030800,1712697032236,-155.0,0.00020599,2]
[322030801,1712697032245,-160.91122999,0.00020599,2]
[322030802,1712697032255,-264.23544895,0.00020599,2]
[322030803,1712697032265,-540.83230062,0.00020599,2]
[322030804,1712697032276,-155.09101632,0.00020599,2]
[322030805,1712697032289,-476.61,0.00020599,2]
[322030806,1712697032299,-500.0,0.00020599,2]
[322030807,1712697032309,-500.0,0.00020599,2]
[322030808,1712697032319,-500.0,0.00020599,2]
[322030809,1712697032329,-599.82,0.00020599,2]
[322030810,1712697032339,-500.0,0.00020599,2]
[322030811,1712697032349,-500.0,0.00020599,2]
[322030812,1712697032358,-500.0,0.00020599,2]
[322030813,1712697032368,-500.0,0.00020599,2]
[322030814,1712697032378,-500.0,0.00020599,2]
[322030815,1712697032389,-500.0,0.00020599,2]
[322030816,1712697032398,-626.04,0.00020599,2]
[322030817,1712697032408,-500.0,0.00020599,2]
[322030818,1712697032418,-584.0,0.00020599,2]
[322030819,1712697032428,-500.0,0.00020599,2]
[322030820,1712697032440,-515.5,0.00020599,2]
[322030821,1712697032451,-500.0,0.00020599,2]
[322030822,1712697032461,-500.0,0.00020599,2]
[322030823,1712697032470,-500.0,0.00020599,2]
[322030824,1712697032480,-286.9858166,0.00020599,2]
[322030825,1712697032490,-500.0,0.00020599,2]
[322030826,1712697032501,-500.0,0.00020599,2]
[322030827,1712697032511,-500.0,0.00020599,2]
[322030828,1712697032522,-500.0,0.00020599,2]
[322030829,1712697032533,-500.0,0.00020599,2]
[322030830,1712697032544,-613.41,0.00020599,2]
[322030831,1712697032553,-635.39,0.00020599,2]
[322030832,1712697032563,-500.0,0.00020599,2]
[322030833,1712697032573,-500.0,0.00020599,2]
[322030834,1712697032584,-500.0,0.00020599,2]
[322030835,1712697032595,-500.0,0.00020599,2]
[322030836,1712697032605,-500.0,0.00020599,2]
[322030837,1712697032614,-500.0,0.00020599,2]
[322030838,1712697032624,-500.0,0.00020599,2]
[322030839,1712697032635,-500.0,0.00020599,2]
[322030840,1712697032644,-500.0,0.00020599,2]
[322030841,1712697032654,-500.0,0.00020599,2]
[322030842,1712697032666,-500.0,0.00020599,2]
[322030843,1712697032678,-500.0,0.00020599,2]
[322030844,1712697032688,-500.0,0.00020599,2]
[322030845,1712697032698,-500.0,0.00020599,2]
[322030846,1712697032709,-539.48,0.00020599,2]
[322030847,1712697032719,-604.73,0.00020599,2]
[322030848,1712697032729,-500.0,0.00020599,2]
[322030849,1712697032739,-500.0,0.00020599,2]
[322030850,1712697032750,-500.0,0.00020599,2]
[322030851,1712697032760,-500.0,0.00020599,2]
[322030852,1712697032770,-500.0,0.00020599,2]
[322030853,1712697032780,-500.0,0.00020599,2]
[322030854,1712697032791,-500.0,0.00020599,2]
[322030855,1712697032802,-500.0,0.00020599,2]
[322030856,1712697032812,-500.0,0.00020599,2]
[322030857,1712697032823,-500.0,0.00020599,2]
[322030858,1712697032834,-500.0,0.00020599,2]
[322030859,1712697032845,-500.0,0.00020599,2]
[322030860,1712697032856,-500.0,0.00020599,2]
[322030861,1712697032867,-500.0,0.00020599,2]
[322030862,1712697032878,-500.0,0.00020599,2]
[322030863,1712697032889,-596688.02160628,0.000206,3]
[322030864,1712697032909,-2516.75208401,0.000206,3]
[322030865,1712697032921,-9063.21597719,0.000206,3]
[322030866,1712697032935,-6023.95082908,0.000206,3]
[322030867,1712697032959,-5681.00912494,0.000206,3]
[322030868,1712697032984,-217063.51891084,0.000206,3]
[322030869,1712697032995,-1053.64700066,0.00020616,2]
[322030870,1712697033007,-1053.64700066,0.00020657,2]
[322030871,1712697033017,-1000.0,0.00020678,2]
[322030872,1712697033027,-1053.64700066,0.00020697,2]
[322030873,1712697033039,-363.28791995,0.000207,2]
[322030874,1712697033050,-363.28791995,0.000207,2]
[322030875,1712697033060,-363.28791995,0.000207,2]
[322030876,1712697033070,-363.28791995,0.000207,2]
[322030877,1712697033083,-363.28791995,0.000207,2]
[322030878,1712697033095,-363.28791995,0.000207,2]
[322030879,1712697033106,-363.28791995,0.000207,2]
[322030880,1712697033117,-363.28791995,0.000207,2]
[322030881,1712697033127,-363.28791995,0.000207,2]
[322030882,1712697033137,-363.28791995,0.000207,2]
[322030883,1712697033147,-363.28791995,0.000207,2]
[322030884,1712697033157,-363.28791995,0.000207,2]
[322030885,1712697033166,-363.28791995,0.000207,2]
[322030886,1712697033176,-363.28791995,0.000207,2]
[322030887,1712697033185,-363.28791995,0.000207,2]
[322030888,1712697033196,-363.28791995,0.000207,2]
[322030889,1712697033205,-363.28791995,0.000207,2]
[322030890,1712697033215,-363.28791995,0.000207,2]
[322030891,1712697033225,-363.28791995,0.000207,2]
[322030892,1712697033235,-363.28791995,0.000207,2]
[322030893,1712697033244,-363.28791995,0.000207,2]
[322030894,1712697033254,-363.28791995,0.000207,2]
[322030895,1712697033264,-363.28791995,0.000207,2]
[322030896,1712697033274,-363.28791995,0.000207,2]
[322030897,1712697033283,-363.28791995,0.000207,2]
[322030898,1712697033292,-363.28791995,0.000207,2]
[322030899,1712697033303,-363.28791995,0.000207,2]
[322030900,1712697033313,-363.28791995,0.000207,2]
[322030901,1712697033322,-363.28791995,0.000207,2]
[322030902,1712697033333,-363.28791995,0.000207,2]
[322030903,1712697033342,-363.28791995,0.000207,2]
[322030904,1712697033351,-363.28791995,0.000207,2]
[322030905,1712697033361,-363.28791995,0.000207,2]
[322030906,1712697033372,-363.28791995,0.000207,2]
[322030907,1712697033382,-363.28791995,0.000207,2]
[322030908,1712697033393,-363.28791995,0.000207,2]
[322030909,1712697033403,-363.28791995,0.000207,2]
[322030910,1712697033412,-363.28791995,0.000207,2]
[322030911,1712697033422,-363.28791995,0.000207,2]
[322030912,1712697033433,-363.28791995,0.000207,2]
[322030913,1712697033448,-363.28791995,0.000207,2]
[322030914,1712697033459,-363.28791995,0.000207,2]
[322030915,1712697033469,-363.28791995,0.000207,2]
[322030916,1712697033480,-363.28791995,0.000207,2]
[322030917,1712697033490,-363.28791995,0.000207,2]
[322030918,1712697033500,-363.28791995,0.000207,2]
[322030919,1712697033509,-363.28791995,0.000207,2]
[322030920,1712697033523,-363.28791995,0.000207,2]
[322030921,1712697033533,-363.28791995,0.000207,2]
[322030922,1712697033543,-363.28791995,0.000207,2]
[322030923,1712697033552,-1053.64700066,0.00020738,2]
[322030924,1712697033562,-153.40766547,0.00020756,2]
[322030925,1712697033571,-1053.64700066,0.00020778,2]
[322030926,1712697033581,-855.216179,0.000208,2]
[322030927,1712697033591,-1282.824269,0.000208,2]
[322030928,1712697033601,-1710.432359,0.000208,2]
[322030929,1712697033610,-2138.040449,0.000208,2]
[322030930,1712697033619,-2993.256629,0.000208,2]
[322030931,1712697033629,-172.6210039,0.000208,2]
[322030932,1712697033640,-1053.64700066,0.00020819,2]
[322030933,1712697033651,-1053.64700066,0.00020859,2]
[322030934,1712697034097,-205.31,0.00020873,2]
[322030935,1712697034109,-515.5,0.00020873,2]
[322030936,1712697034120,-390.45,0.00020873,2]
[322030937,1712697034129,-500.0,0.00020873,2]
[322030938,1712697034139,-500.0,0.00020873,2]
[322030939,1712697034148,-500.0,0.00020873,2]
[322030940,1712697034158,-184.32,0.00020873,2]
[322030941,1712697034167,-500.0,0.00020873,2]
[322030942,1712697034177,-500.0,0.00020873,2]
[322030943,1712697034187,-204.24,0.00020873,2]
[322030944,1712697034196,-500.0,0.00020873,2]
[322030945,1712697034205,-604.73,0.00020873,2]
[322030946,1712697034216,-500.0,0.00020873,2]
[322030947,1712697034227,-500.0,0.00020873,2]
[322030948,1712697034237,-500.0,0.00020873,2]
[322030949,1712697034248,-500.0,0.00020873,2]
[322030950,1712697034257,-476.18,0.00020873,2]
[322030951,1712697034266,-500.0,0.00020873,2]
[322030952,1712697034275,-10000.0,0.000209,2]
[322030953,1712697034285,-467.54324081,0.000209,2]
[322030954,1712697034294,-467.54324081,0.000209,2]
[322030955,1712697034303,-467.54324081,0.000209,2]
[322030956,1712697034312,-308.41982429,0.000209,2]
[322030965,1712697038082,-159.12341652,0.000209,2]